[Event "*** Qualifier 1: Titled Tuesday 3|2 Blitz"]
[Site "Chess.com"]
[Date "2017.04.04"]
[Round "1"]
[White "johnathan113"]
[Black "rupeshjswl7"]
[Result "0-1"]
[WhiteElo "2385"]
[BlackElo "2080"]
[TimeControl "180+2"]
[EndTime "13:15:12 PDT"]
[Termination "rupeshjswl7 won by resignation"]

1. e4 {[%clk 0:03:02]} 1... e6 {[%clk 0:02:59.4]} 2. b3 {[%clk 0:02:59.6]} 2...
d5 {[%clk 0:02:58.2]} 3. Bb2 {[%clk 0:03:01]} 3... Nf6 {[%clk 0:02:54.1]} 4. e5
{[%clk 0:03:00.6]} 4... Nfd7 {[%clk 0:02:54.9]} 5. f4 {[%clk 0:03:02.5]} 5... c5
{[%clk 0:02:55.3]} 6. Qg4 {[%clk 0:03:01.8]} 6... Nc6 {[%clk 0:02:53.3]} 7. Nf3
{[%clk 0:03:02.8]} 7... Nb4 {[%clk 0:02:26.3]} 8. Na3 {[%clk 0:03:01.5]} 8... a6
{[%clk 0:02:27.5]} 9. c3 {[%clk 0:02:58.8]} 9... Nc6 {[%clk 0:02:27.3]} 10. c4
{[%clk 0:02:57.1]} 10... d4 {[%clk 0:02:22.5]} 11. Nc2 {[%clk 0:02:53.9]} 11...
a5 {[%clk 0:02:22.4]} 12. Bd3 {[%clk 0:02:46.2]} 12... Nb4 {[%clk 0:02:17.2]}
13. Nxb4 {[%clk 0:02:45.8]} 13... axb4 {[%clk 0:02:17.8]} 14. O-O {[%clk
0:02:44.9]} 14... Qc7 {[%clk 0:02:14.2]} 15. a3 {[%clk 0:02:25.7]} 15... bxa3
{[%clk 0:02:13.4]} 16. Bxa3 {[%clk 0:02:20.6]} 16... g6 {[%clk 0:02:14]} 17. Bb2
{[%clk 0:02:15.4]} 17... Rxa1 {[%clk 0:02:08.9]} 18. Bxa1 {[%clk 0:02:08]} 18...
Qb6 {[%clk 0:02:06.4]} 19. Rb1 {[%clk 0:01:58.4]} 19... Be7 {[%clk 0:01:58.4]}
20. h4 {[%clk 0:01:47.6]} 20... h5 {[%clk 0:01:58.5]} 21. Qg3 {[%clk 0:01:44.3]}
21... Qc7 {[%clk 0:01:56.9]} 22. Kh1 {[%clk 0:01:42.9]} 22... b6 {[%clk
0:01:54]} 23. b4 {[%clk 0:01:41.7]} 23... Bb7 {[%clk 0:01:53.9]} 24. Ng5 {[%clk
0:01:39.1]} 24... Bxg5 {[%clk 0:01:50.5]} 25. Qxg5 {[%clk 0:01:41]} 25... Rf8
{[%clk 0:01:42.9]} 26. b5 {[%clk 0:01:33.6]} 26... Qd8 {[%clk 0:01:39.1]} 27.
Bb2 {[%clk 0:01:27.8]} 27... Qxg5 {[%clk 0:01:39.1]} 28. hxg5 {[%clk 0:01:29.7]}
28... Ke7 {[%clk 0:01:37.2]} 29. Ra1 {[%clk 0:01:27.9]} 29... Ra8 {[%clk
0:01:38.4]} 30. Rxa8 {[%clk 0:01:26]} 30... Bxa8 {[%clk 0:01:39.5]} 31. Kh2
{[%clk 0:01:27.9]} 31... Nf8 {[%clk 0:01:36.9]} 32. Kh3 {[%clk 0:01:27.5]} 32...
Nh7 {[%clk 0:01:37.3]} 33. Be2 {[%clk 0:01:20.3]} 33... Nf8 {[%clk 0:01:35.1]}
34. d3 {[%clk 0:01:15.2]} 34... Nd7 {[%clk 0:01:35]} 35. Bc1 {[%clk 0:01:16.4]}
35... Kf8 {[%clk 0:01:33.7]} 36. Bd2 {[%clk 0:01:17]} 36... Ke7 {[%clk
0:01:34.7]} 37. Be1 {[%clk 0:01:16.1]} 37... Bb7 {[%clk 0:01:35.4]} 38. Bh4
{[%clk 0:00:58.9]} 38... Nf8 {[%clk 0:01:34.7]} 39. g4 {[%clk 0:00:36.4]} 39...
hxg4+ {[%clk 0:01:33.7]} 40. Bxg4 {[%clk 0:00:38.3]} 40... Nd7 {[%clk
0:01:34.7]} 41. Kg3 {[%clk 0:00:39.5]} 41... Nf8 {[%clk 0:01:34.4]} 42. Bh3
{[%clk 0:00:39.2]} 42... Nd7 {[%clk 0:01:34.9]} 43. Bg4 {[%clk 0:00:28.6]} 43...
Nf8 {[%clk 0:01:34.7]} 44. f5 {[%clk 0:00:19.9]} 44... exf5 {[%clk 0:01:34.5]}
45. Bxf5 {[%clk 0:00:21.1]} 45... Ne6 {[%clk 0:00:54.6]} 46. Bg4 {[%clk
0:00:22.4]} 46... Bh1 {[%clk 0:00:52.8]} 47. Be2 {[%clk 0:00:23]} 47... Kd7
{[%clk 0:00:51.5]} 48. Kg4 {[%clk 0:00:23.1]} 48... Ke7 {[%clk 0:00:52.3]} 49.
Bf2 {[%clk 0:00:24]} 49... Bb7 {[%clk 0:00:52.9]} 50. Bg3 {[%clk 0:00:25.2]}
50... Bc8 {[%clk 0:00:54]} 51. Kh4 {[%clk 0:00:24.6]} 51... Ng7 {[%clk 0:00:52]}
52. Bf4 {[%clk 0:00:24]} 52... Nf5+ {[%clk 0:00:52.3]} 53. Kg4 {[%clk
0:00:25.5]} 53... Ke6 {[%clk 0:00:53.3]} 54. Kf3 {[%clk 0:00:21]} 54... Bb7+
{[%clk 0:00:54.2]} 55. Kg4 {[%clk 0:00:21.7]} 55... Ng7 {[%clk 0:00:51.2]} 56.
Kg3 {[%clk 0:00:21]} 56... Nf5+ {[%clk 0:00:49.6]} 57. Kg4 {[%clk 0:00:22.4]}
57... Bc8 {[%clk 0:00:49.9]} 58. Kf3 {[%clk 0:00:23.1]} 58... Ng7 {[%clk
0:00:48.8]} 59. Kg3 {[%clk 0:00:22.3]} 59... Ke7 {[%clk 0:00:49.8]} 60. Bf3
{[%clk 0:00:20.1]} 60... Bf5 {[%clk 0:00:50.3]} 61. Be2 {[%clk 0:00:17.8]} 61...
Ne6 {[%clk 0:00:51.6]} 62. Bd2 {[%clk 0:00:16.8]} 62... Nc7 {[%clk 0:00:50.1]}
63. Bf4 {[%clk 0:00:14.8]} 63... Ke6 {[%clk 0:00:51.2]} 64. Kf2 {[%clk
0:00:13.9]} 64... Ne8 {[%clk 0:00:44.9]} 65. Bf1 {[%clk 0:00:11.5]} 65... Bg4
{[%clk 0:00:43.4]} 66. Bg2 {[%clk 0:00:11.8]} 66... Kf5 {[%clk 0:00:33.5]} 67.
Kg3 {[%clk 0:00:11.8]} 67... Be2 {[%clk 0:00:33.8]} 68. Be4+ {[%clk 0:00:10.4]}
68... Ke6 {[%clk 0:00:34.7]} 69. Kf2 {[%clk 0:00:12]} 69... Bg4 {[%clk
0:00:35.2]} 70. Bb7 {[%clk 0:00:08.4]} 70... Bf5 {[%clk 0:00:32.5]} 71. Bd5+
{[%clk 0:00:08.9]} 71... Ke7 {[%clk 0:00:32.7]} 72. Ke2 {[%clk 0:00:10.2]} 72...
Nc7 {[%clk 0:00:31.3]} 73. Bf3 {[%clk 0:00:07.4]} 73... Ne6 {[%clk 0:00:32.2]}
74. Bd2 {[%clk 0:00:08.8]} 74... Ng7 {[%clk 0:00:32.5]} 75. Bd5 {[%clk
0:00:09.2]} 75... Nh5 {[%clk 0:00:32.8]} 76. Bf3 {[%clk 0:00:09.7]} 76... Ng7
{[%clk 0:00:31.3]} 77. Bf4 {[%clk 0:00:10.7]} 77... Be6 {[%clk 0:00:32.3]} 78.
Be4 {[%clk 0:00:11.3]} 78... Nh5 {[%clk 0:00:32]} 79. Bh2 {[%clk 0:00:11.2]}
79... Ng7 {[%clk 0:00:31.2]} 80. Kf3 {[%clk 0:00:12.1]} 80... Bf5 {[%clk
0:00:31.5]} 81. Bf4 {[%clk 0:00:04.9]} 81... Bxe4+ {[%clk 0:00:31.6]} 82. Kxe4
{[%clk 0:00:06.8]} 82... Ke6 {[%clk 0:00:32.9]} 83. Bd2 {[%clk 0:00:06.8]} 83...
Nf5 {[%clk 0:00:33.9]} 84. Bf4 {[%clk 0:00:08.2]} 84... Nh4 {[%clk 0:00:34.3]}
85. Bg3 {[%clk 0:00:09]} 85... Nf5 {[%clk 0:00:31.6]} 86. Bf2 {[%clk 0:00:09.4]}
86... Ng7 {[%clk 0:00:32.6]} 87. Bg3 {[%clk 0:00:10.4]} 87... Ne8 {[%clk
0:00:32.2]} 88. Bf2 {[%clk 0:00:11.3]} 88... Nc7 {[%clk 0:00:33.6]} 89. Bg3
{[%clk 0:00:12.5]} 89... Ne8 {[%clk 0:00:35.5]} 90. Bf2 {[%clk 0:00:13.7]} 90...
Ng7 {[%clk 0:00:36.9]} 91. Bg3 {[%clk 0:00:15.2]} 91... Nh5 {[%clk 0:00:38.2]}
92. Bf2 {[%clk 0:00:16]} 92... Ng7 {[%clk 0:00:39.1]} 93. Bg3 {[%clk 0:00:17]}
93... Ne8 {[%clk 0:00:38.7]} 94. Bf2 {[%clk 0:00:18.1]} 94... Ng7 {[%clk
0:00:39.8]} 95. Bg3 {[%clk 0:00:19.3]} 95... Kd7 {[%clk 0:00:41.2]} 96. Bf2
{[%clk 0:00:18.9]} 96... Ne6 {[%clk 0:00:42.3]} 97. Bh4 {[%clk 0:00:17.8]} 97...
Ke7 {[%clk 0:00:42.9]} 98. Bg3 {[%clk 0:00:14.9]} 98... Nxg5+ {[%clk 0:00:40.2]}
99. Kd5 {[%clk 0:00:16.5]} 99... Kd7 {[%clk 0:00:40.3]} 100. Bh4 {[%clk
0:00:08.6]} 100... Ne6 {[%clk 0:00:41.1]} 101. Bg3 {[%clk 0:00:09.2]} 101... g5
{[%clk 0:00:39.7]} 102. Ke4 {[%clk 0:00:09.5]} 102... Ng7 {[%clk 0:00:37.6]}
103. Bh2 {[%clk 0:00:08.2]} 103... Ke6 {[%clk 0:00:38.6]} 104. Bg1 {[%clk
0:00:08.2]} 104... Nf5 {[%clk 0:00:39.6]} 105. Bf2 {[%clk 0:00:09.7]} 105... Ne3
{[%clk 0:00:37.4]} 106. Be1 {[%clk 0:00:06.3]} 106... Ng4 {[%clk 0:00:37.9]}
107. Bg3 {[%clk 0:00:06.3]} 107... Nh6 {[%clk 0:00:39]} 108. Bf2 {[%clk
0:00:07.2]} 108... Nf5 {[%clk 0:00:40.1]} 109. Be1 {[%clk 0:00:08.4]} 109... Nh4
{[%clk 0:00:40.8]} 110. Bg3 {[%clk 0:00:08.3]} 110... Nf5 {[%clk 0:00:41.2]}
111. Be1 {[%clk 0:00:09.4]} 111... g4 {[%clk 0:00:42.3]} 112. Kf4 {[%clk
0:00:10]} 112... g3 {[%clk 0:00:42.6]} 113. Bxg3 {[%clk 0:00:04.6]} 113... Nxg3
{[%clk 0:00:43.1]} 114. Kxg3 {[%clk 0:00:06.5]} 114... Kxe5 {[%clk 0:00:44.4]}
115. Kg4 {[%clk 0:00:08.1]} 115... Kf6 {[%clk 0:00:42.4]} 116. Kf4 {[%clk
0:00:09.2]} 116... Kg6 {[%clk 0:00:42.7]} 117. Ke5 {[%clk 0:00:10.7]} 117... f5
{[%clk 0:00:43.6]} 118. Kd6 {[%clk 0:00:09.5]} 118... f4 {[%clk 0:00:44.5]} 119.
Kc6 {[%clk 0:00:11]} 119... f3 {[%clk 0:00:45.8]} 120. Kxb6 {[%clk 0:00:12.3]}
120... f2 {[%clk 0:00:47.1]} 121. Kxc5 {[%clk 0:00:14.2]} 121... f1=Q {[%clk
0:00:48.3]} 122. b6 {[%clk 0:00:15.5]} 122... Qf8+ {[%clk 0:00:48.3]} 123. Kxd4
{[%clk 0:00:14.5]} 123... Qd6+ {[%clk 0:00:49.3]} 124. Ke3 {[%clk 0:00:15.2]}
0-1

[Event "*** Qualifier 1: Titled Tuesday 3|2 Blitz"]
[Site "Chess.com"]
[Date "2017.04.04"]
[Round "2"]
[White "Grootneus"]
[Black "Saitama_Hero"]
[Result "1-0"]
[WhiteElo "2107"]
[BlackElo "2181"]
[TimeControl "180+2"]
[EndTime "13:19:36 PDT"]
[Termination "Grootneus won by resignation"]

1. e4 {[%clk 0:03:02]} 1... c5 {[%clk 0:02:59.6]} 2. b4 {[%clk 0:03:00.4]} 2...
g6 {[%clk 0:03:01.5]} 3. Bb2 {[%clk 0:03:00.6]} 3... Nf6 {[%clk 0:02:59.3]} 4.
bxc5 {[%clk 0:03:01.7]} 4... Bg7 {[%clk 0:02:58]} 5. Bc4 {[%clk 0:02:57.3]} 5...
Nc6 {[%clk 0:02:52.3]} 6. Nf3 {[%clk 0:02:38.4]} 6... O-O {[%clk 0:02:51]} 7.
Qe2 {[%clk 0:02:28.5]} 7... d5 {[%clk 0:02:46.1]} 8. cxd6 {[%clk 0:02:12.8]}
8... exd6 {[%clk 0:02:45.4]} 9. O-O {[%clk 0:02:13.1]} 9... Re8 {[%clk 0:02:44]}
10. d3 {[%clk 0:02:14.4]} 10... d5 {[%clk 0:02:43.3]} 11. Bb3 {[%clk 0:02:04.4]}
11... dxe4 {[%clk 0:02:44.5]} 12. Ng5 {[%clk 0:01:55.9]} 12... Nd4 {[%clk
0:02:36.3]} 13. Bxf7+ {[%clk 0:01:49.3]} 13... Kf8 {[%clk 0:02:36]} 14. Bxd4
{[%clk 0:01:44.5]} 14... Qxd4 {[%clk 0:02:37.9]} 15. Bxe8 {[%clk 0:01:46]} 15...
Qxa1 {[%clk 0:02:35.6]} 16. Ba4 {[%clk 0:01:38.7]} 16... Bg4 {[%clk 0:02:31]}
17. Qe3 {[%clk 0:01:34.8]} 17... Qxa2 {[%clk 0:02:28.5]} 18. Qc5+ {[%clk
0:01:33]} 18... Kg8 {[%clk 0:02:13.5]} 19. Bb3+ {[%clk 0:01:33.3]} 19... Qxb3
{[%clk 0:02:14.5]} 20. cxb3 {[%clk 0:01:34.7]} 20... exd3 {[%clk 0:02:16.1]} 21.
Qc4+ {[%clk 0:01:31]} 1-0

[Event "*** Qualifier 1: Titled Tuesday 3|2 Blitz"]
[Site "Chess.com"]
[Date "2017.04.04"]
[Round "2"]
[White "Aygehovit1992"]
[Black "bancsoo"]
[Result "0-1"]
[WhiteElo "2437"]
[BlackElo "2622"]
[TimeControl "180+2"]
[EndTime "13:20:04 PDT"]
[Termination "bancsoo won by resignation"]

1. e4 {[%clk 0:03:02]} 1... e5 {[%clk 0:03:00.3]} 2. Nf3 {[%clk 0:03:02.5]} 2...
Nc6 {[%clk 0:03:01.4]} 3. Bb5 {[%clk 0:03:03.7]} 3... a6 {[%clk 0:03:02.2]} 4.
Ba4 {[%clk 0:03:04.9]} 4... Nf6 {[%clk 0:03:03.5]} 5. d3 {[%clk 0:03:05.1]} 5...
d6 {[%clk 0:03:01.5]} 6. c4 {[%clk 0:03:05.1]} 6... g6 {[%clk 0:03:02.1]} 7. Nc3
{[%clk 0:03:06.1]} 7... Bg7 {[%clk 0:03:03]} 8. Nd5 {[%clk 0:03:06.3]} 8... h6
{[%clk 0:02:53.1]} 9. h3 {[%clk 0:03:06.9]} 9... O-O {[%clk 0:02:53.6]} 10. Be3
{[%clk 0:03:07.9]} 10... Nd7 {[%clk 0:02:46.2]} 11. b4 {[%clk 0:02:56]} 11...
Ne7 {[%clk 0:02:43.7]} 12. g4 {[%clk 0:02:49.8]} 12... c6 {[%clk 0:02:42.2]} 13.
Nxe7+ {[%clk 0:02:49.9]} 13... Qxe7 {[%clk 0:02:43]} 14. Qd2 {[%clk 0:02:50.1]}
14... Kh7 {[%clk 0:02:43.4]} 15. Bd1 {[%clk 0:02:47.6]} 15... Re8 {[%clk
0:02:23.7]} 16. h4 {[%clk 0:02:48.6]} 16... Nf8 {[%clk 0:02:23.3]} 17. h5 {[%clk
0:02:49.8]} 17... g5 {[%clk 0:02:23.7]} 18. Nh2 {[%clk 0:02:46.5]} 18... Ne6
{[%clk 0:02:23.7]} 19. Nf1 {[%clk 0:02:47.6]} 19... Nf4 {[%clk 0:02:22.6]} 20.
Ng3 {[%clk 0:02:48.4]} 20... d5 {[%clk 0:02:23.6]} 21. Bc5 {[%clk 0:02:27.2]}
21... Qc7 {[%clk 0:02:24]} 22. Bc2 {[%clk 0:02:20.4]} 22... d4 {[%clk 0:02:20]}
23. b5 {[%clk 0:01:53.6]} 23... cxb5 {[%clk 0:02:20]} 24. Qb4 {[%clk 0:01:49]}
24... bxc4 {[%clk 0:02:20.3]} 25. Qxc4 {[%clk 0:01:42.7]} 25... Bxg4 {[%clk
0:02:17.3]} 26. Bb3 {[%clk 0:01:39]} 26... Be6 {[%clk 0:02:16.4]} 27. Qc1 {[%clk
0:01:34.3]} 27... Nxd3+ {[%clk 0:02:16.8]} 0-1

[Event "*** Qualifier 1: Titled Tuesday 3|2 Blitz"]
[Site "Chess.com"]
[Date "2017.04.04"]
[Round "2"]
[White "Bengalas"]
[Black "FearNoEvil12"]
[Result "1-0"]
[WhiteElo "2254"]
[BlackElo "2092"]
[TimeControl "180+2"]
[EndTime "13:20:05 PDT"]
[Termination "Bengalas won by resignation"]

1. d4 {[%clk 0:03:02]} 1... b5 {[%clk 0:02:59.6]} 2. e4 {[%clk 0:02:58.8]} 2...
a6 {[%clk 0:03:00.4]} 3. Nf3 {[%clk 0:02:59]} 3... Bb7 {[%clk 0:03:01.8]} 4. Bd3
{[%clk 0:02:59.2]} 4... e6 {[%clk 0:03:03.3]} 5. O-O {[%clk 0:02:59.2]} 5... Nf6
{[%clk 0:03:04.7]} 6. Re1 {[%clk 0:02:59.5]} 6... d6 {[%clk 0:03:05.8]} 7. b3
{[%clk 0:02:59.1]} 7... b4 {[%clk 0:03:04.7]} 8. a3 {[%clk 0:02:59.6]} 8... a5
{[%clk 0:03:03.3]} 9. axb4 {[%clk 0:02:59.3]} 9... axb4 {[%clk 0:03:03.9]} 10.
Rxa8 {[%clk 0:03:00.2]} 10... Bxa8 {[%clk 0:03:04.5]} 11. Bd2 {[%clk 0:02:51.3]}
11... d5 {[%clk 0:02:55.6]} 12. exd5 {[%clk 0:02:48]} 12... Nxd5 {[%clk
0:02:55.1]} 13. Ne5 {[%clk 0:02:45.6]} 13... Nd7 {[%clk 0:02:54.7]} 14. Bb5
{[%clk 0:02:44.8]} 14... c6 {[%clk 0:02:44.7]} 15. Bxc6 {[%clk 0:02:41.5]} 15...
Bxc6 {[%clk 0:02:44.4]} 16. Nxc6 {[%clk 0:02:42.5]} 16... Qc7 {[%clk 0:02:45.2]}
17. Ne5 {[%clk 0:02:41]} 17... Bd6 {[%clk 0:02:44.7]} 18. Nxd7 {[%clk
0:02:35.3]} 18... Qxd7 {[%clk 0:02:40.4]} 19. c4 {[%clk 0:02:34.8]} 19... bxc3
{[%clk 0:02:40.3]} 20. Nxc3 {[%clk 0:02:35.5]} 20... Nxc3 {[%clk 0:02:40.1]} 21.
Bxc3 {[%clk 0:02:36.4]} 21... O-O {[%clk 0:02:41.6]} 22. d5 {[%clk 0:02:29.9]}
22... exd5 {[%clk 0:02:15.2]} 23. Qd4 {[%clk 0:02:29.3]} 23... f6 {[%clk
0:01:56.4]} 24. Qxd5+ {[%clk 0:02:29.5]} 24... Kh8 {[%clk 0:01:57.8]} 25. Rd1
{[%clk 0:02:28.8]} 25... Rd8 {[%clk 0:01:59]} 26. g3 {[%clk 0:02:26]} 26... Qc7
{[%clk 0:01:39.6]} 27. Ba5 {[%clk 0:02:22.4]} 1-0

[Event "*** Qualifier 1: Titled Tuesday 3|2 Blitz"]
[Site "Chess.com"]
[Date "2017.04.04"]
[Round "2"]
[White "armago"]
[Black "silverback96"]
[Result "1-0"]
[WhiteElo "2181"]
[BlackElo "2084"]
[TimeControl "180+2"]
[EndTime "13:20:47 PDT"]
[Termination "armago won by resignation"]

1. d4 {[%clk 0:03:02]} 1... g6 {[%clk 0:02:59.6]} 2. c4 {[%clk 0:03:02.2]} 2...
Bg7 {[%clk 0:03:00.7]} 3. e4 {[%clk 0:03:03.2]} 3... c5 {[%clk 0:03:02.6]} 4. d5
{[%clk 0:03:03.7]} 4... e6 {[%clk 0:03:04.2]} 5. Bd3 {[%clk 0:03:01.5]} 5...
exd5 {[%clk 0:03:05.2]} 6. exd5 {[%clk 0:03:00.9]} 6... d6 {[%clk 0:03:05.1]} 7.
Nf3 {[%clk 0:02:59.9]} 7... Nf6 {[%clk 0:03:05.8]} 8. Nc3 {[%clk 0:02:59.3]}
8... O-O {[%clk 0:03:07.2]} 9. h3 {[%clk 0:02:59.6]} 9... Re8+ {[%clk
0:03:06.5]} 10. Be3 {[%clk 0:03:00.5]} 10... Nfd7 {[%clk 0:02:55.3]} 11. O-O
{[%clk 0:02:59]} 11... Ne5 {[%clk 0:02:56.5]} 12. Nxe5 {[%clk 0:02:57.9]} 12...
Bxe5 {[%clk 0:02:57.9]} 13. Qd2 {[%clk 0:02:55.4]} 13... Na6 {[%clk 0:02:50.3]}
14. Rae1 {[%clk 0:02:53.7]} 14... Nb4 {[%clk 0:02:38.5]} 15. Bb1 {[%clk
0:02:53.8]} 15... Qh4 {[%clk 0:02:34.7]} 16. a3 {[%clk 0:02:50.1]} 16... Na6
{[%clk 0:02:14]} 17. f4 {[%clk 0:02:44.5]} 17... Bf6 {[%clk 0:02:03.2]} 18. Bf2
{[%clk 0:02:43.2]} 18... Qh6 {[%clk 0:01:55.8]} 19. Rxe8+ {[%clk 0:02:42.8]}
19... Kg7 {[%clk 0:01:55.6]} 20. Ne4 {[%clk 0:02:41.4]} 20... Nc7 {[%clk
0:01:32.2]} 21. Nxf6 {[%clk 0:02:40.9]} 21... Nxe8 {[%clk 0:01:33.5]} 22. Nxe8+
{[%clk 0:02:41.3]} 22... Kf8 {[%clk 0:01:35.4]} 23. Nxd6 {[%clk 0:02:41.2]}
23... Bxh3 {[%clk 0:01:37.3]} 24. Bxc5 {[%clk 0:02:33.5]} 24... Kg8 {[%clk
0:01:29.7]} 25. gxh3 {[%clk 0:02:32.2]} 25... Qxh3 {[%clk 0:01:29.3]} 26. Qe3
{[%clk 0:02:32.5]} 26... Qg4+ {[%clk 0:01:28.9]} 27. Kh2 {[%clk 0:02:32.9]}
27... b6 {[%clk 0:01:28.8]} 28. Bd4 {[%clk 0:02:23.5]} 28... Rd8 {[%clk
0:01:25.5]} 29. Ne4 {[%clk 0:02:20.4]} 29... Re8 {[%clk 0:01:26.5]} 30. Nf6+
{[%clk 0:02:21.4]} 1-0

[Event "*** Qualifier 1: Titled Tuesday 3|2 Blitz"]
[Site "Chess.com"]
[Date "2017.04.04"]
[Round "2"]
[White "scrapnel"]
[Black "FLchessplayer"]
[Result "1-0"]
[WhiteElo "2319"]
[BlackElo "2021"]
[TimeControl "180+2"]
[EndTime "13:20:53 PDT"]
[Termination "scrapnel won by resignation"]

1. Nf3 {[%clk 0:02:59]} 1... g6 {[%clk 0:02:59.3]} 2. d4 {[%clk 0:02:59.1]} 2...
Bg7 {[%clk 0:03:00.3]} 3. e4 {[%clk 0:02:59.3]} 3... d6 {[%clk 0:03:01.4]} 4. c3
{[%clk 0:03:00]} 4... c6 {[%clk 0:03:02.7]} 5. Bg5 {[%clk 0:02:59.7]} 5... h6
{[%clk 0:03:00.9]} 6. Bh4 {[%clk 0:02:59.7]} 6... Qc7 {[%clk 0:02:59.1]} 7. Nbd2
{[%clk 0:02:59.2]} 7... Nd7 {[%clk 0:03:00.1]} 8. a4 {[%clk 0:02:55.9]} 8...
Ngf6 {[%clk 0:02:57.6]} 9. Bd3 {[%clk 0:02:53.2]} 9... g5 {[%clk 0:02:58.1]} 10.
Bg3 {[%clk 0:02:52.7]} 10... Nh5 {[%clk 0:02:59.3]} 11. O-O {[%clk 0:02:39.4]}
11... a6 {[%clk 0:02:58.4]} 12. a5 {[%clk 0:02:39.6]} 12... Nxg3 {[%clk
0:02:56.8]} 13. hxg3 {[%clk 0:02:34.8]} 13... e5 {[%clk 0:02:54]} 14. Nc4 {[%clk
0:02:27]} 14... exd4 {[%clk 0:02:49.4]} 15. Nxd4 {[%clk 0:02:22.9]} 15... O-O
{[%clk 0:02:49.7]} 16. Nf5 {[%clk 0:02:21.8]} 16... d5 {[%clk 0:02:46.7]} 17.
exd5 {[%clk 0:02:11.9]} 17... cxd5 {[%clk 0:02:47.2]} 18. Nce3 {[%clk
0:02:02.3]} 18... Nf6 {[%clk 0:02:47.2]} 19. Nxg7 {[%clk 0:01:59.3]} 19... Kxg7
{[%clk 0:02:47.6]} 20. Bf5 {[%clk 0:01:58.6]} 20... Be6 {[%clk 0:02:48.2]} 21.
Qd4 {[%clk 0:01:56]} 21... Rfd8 {[%clk 0:02:42.8]} 22. f4 {[%clk 0:01:50.8]}
22... g4 {[%clk 0:02:36.9]} 23. Nxg4 {[%clk 0:01:47]} 23... Qe7 {[%clk
0:02:31.9]} 24. Rae1 {[%clk 0:01:35.3]} 24... h5 {[%clk 0:02:32.2]} 25. Bxe6
{[%clk 0:01:28.4]} 25... hxg4 {[%clk 0:02:18.5]} 26. Bxg4 {[%clk 0:01:27.2]}
26... Qd6 {[%clk 0:02:16.5]} 27. Re5 {[%clk 0:01:24.4]} 27... Kf8 {[%clk
0:02:13.9]} 28. Bf3 {[%clk 0:01:23.9]} 28... Rac8 {[%clk 0:02:11.9]} 29. Rf5
{[%clk 0:01:12.9]} 29... Rc6 {[%clk 0:02:06]} 30. g4 {[%clk 0:01:08.7]} 30...
Qc5 {[%clk 0:02:05]} 31. Qxc5+ {[%clk 0:01:07.9]} 31... Rxc5 {[%clk 0:02:05.8]}
32. Rxf6 {[%clk 0:01:09.1]} 1-0

[Event "*** Qualifier 1: Titled Tuesday 3|2 Blitz"]
[Site "Chess.com"]
[Date "2017.04.04"]
[Round "2"]
[White "Dlugy"]
[Black "VladDobrov"]
[Result "1-0"]
[WhiteElo "2634"]
[BlackElo "2516"]
[TimeControl "180+2"]
[EndTime "13:21:10 PDT"]
[Termination "Dlugy won by resignation"]

1. d4 {[%clk 0:03:02]} 1... Nf6 {[%clk 0:03:00.8]} 2. Bf4 {[%clk 0:03:02.5]}
2... Nh5 {[%clk 0:02:59.2]} 3. Bg5 {[%clk 0:02:59]} 3... h6 {[%clk 0:02:59.8]}
4. Bh4 {[%clk 0:02:58.5]} 4... g5 {[%clk 0:02:59.9]} 5. e3 {[%clk 0:02:54.6]}
5... Nf6 {[%clk 0:02:58.5]} 6. Bg3 {[%clk 0:02:53.8]} 6... d6 {[%clk 0:02:59.8]}
7. Nc3 {[%clk 0:02:50.1]} 7... a6 {[%clk 0:02:54.5]} 8. e4 {[%clk 0:02:41.1]}
8... Bg7 {[%clk 0:02:53.4]} 9. e5 {[%clk 0:02:38.6]} 9... Nfd7 {[%clk 0:02:52]}
10. e6 {[%clk 0:02:37.5]} 10... fxe6 {[%clk 0:02:52.5]} 11. h4 {[%clk
0:02:31.7]} 11... Nf6 {[%clk 0:02:39]} 12. hxg5 {[%clk 0:02:27.5]} 12... hxg5
{[%clk 0:02:40.9]} 13. Rxh8+ {[%clk 0:02:28.5]} 13... Bxh8 {[%clk 0:02:42.8]}
14. Nf3 {[%clk 0:02:30]} 14... c5 {[%clk 0:02:35.3]} 15. dxc5 {[%clk 0:02:26.1]}
15... Qa5 {[%clk 0:02:35.2]} 16. cxd6 {[%clk 0:02:14.2]} 16... Ne4 {[%clk
0:02:36]} 17. Qd3 {[%clk 0:02:10.2]} 17... Nxc3 {[%clk 0:02:24.3]} 18. Qg6+
{[%clk 0:02:11]} 18... Kd7 {[%clk 0:02:24.7]} 19. dxe7 {[%clk 0:02:08.7]} 19...
Nd5+ {[%clk 0:02:20]} 20. c3 {[%clk 0:02:09.8]} 20... Bxc3+ {[%clk 0:02:19.2]}
21. Kd1 {[%clk 0:02:10.4]} 21... Nxe7 {[%clk 0:02:07.7]} 22. Qd3+ {[%clk
0:02:09.5]} 22... Qd5 {[%clk 0:02:07.6]} 23. bxc3 {[%clk 0:02:07.8]} 23... Nf5
{[%clk 0:01:50.3]} 24. Bh2 {[%clk 0:02:08.1]} 24... Nc6 {[%clk 0:01:46.6]} 25.
Qxd5+ {[%clk 0:02:03]} 25... exd5 {[%clk 0:01:46.6]} 26. Nxg5 {[%clk 0:02:03.4]}
26... Ke7 {[%clk 0:01:41]} 27. Kd2 {[%clk 0:01:59.1]} 27... Kf6 {[%clk
0:01:38.1]} 28. Nf3 {[%clk 0:02:00.3]} 28... Be6 {[%clk 0:01:38.2]} 29. Bf4
{[%clk 0:01:56.8]} 29... Na5 {[%clk 0:01:26.2]} 30. g4 {[%clk 0:01:53.6]} 30...
Ne7 {[%clk 0:01:26.4]} 31. Bg5+ {[%clk 0:01:53.1]} 31... Kf7 {[%clk 0:01:26.7]}
32. Ne5+ {[%clk 0:01:49.3]} 32... Ke8 {[%clk 0:01:28]} 33. f4 {[%clk 0:01:44.9]}
33... Bg8 {[%clk 0:01:25.2]} 34. Re1 {[%clk 0:01:42.6]} 1-0